fUST/lending_fUST_20260610
["ID","MTS","AMOUNT","RATE_DAILY","PERIOD"]
[424695987,1781057449000,-3000.0,0.0002112,2]
[424695988,1781057449000,-3000.0,0.0002113,2]
[424695985,1781057449000,-3000.0,0.0002111,2]
[424695980,1781057449000,-164.46,0.00021096,2]
[424696001,1781057449000,-3000.0,0.0002117,2]
[424695992,1781057449000,-3000.0,0.0002115,2]
[424695990,1781057449000,-3000.0,0.0002114,2]
[424695995,1781057449000,-3000.0,0.0002116,2]
[424695997,1781057449000,-7655.69771926,0.00021162,2]
[424695994,1781057449000,-152.0,0.00021157,7]
[424696005,1781057449000,-5233.588943,0.0002119,2]
[424696007,1781057449000,-151.0,0.000212,4]
[424696024,1781057449000,-500.0,0.00021369,2]
[424696022,1781057449000,-653.09,0.00021369,2]
[424696010,1781057449000,-150.67295338,0.00021338,7]
[424696003,1781057449000,-3000.0,0.0002118,2]
[424696008,1781057449000,-157.62,0.00021225,2]
[424696016,1781057449000,-500.0,0.00021369,2]
[424696014,1781057449000,-500.0,0.00021369,2]
[424696012,1781057449000,-500.0,0.00021369,2]
[424696020,1781057449000,-500.0,0.00021369,2]
[424696094,1781057449000,-500.0,0.00021369,2]
[424696183,1781057449000,-500.0,0.00021369,2]
[424696092,1781057449000,-500.0,0.00021369,2]
[424696165,1781057449000,-1457.42,0.00021369,2]
[424696155,1781057449000,-692.66,0.00021369,2]
[424696159,1781057449000,-2212.19,0.00021369,2]
[424696157,1781057449000,-774.75,0.00021369,2]
[424696161,1781057449000,-2752.23,0.00021369,2]
[424696163,1781057449000,-500.0,0.00021369,2]
[424696174,1781057449000,-500.0,0.00021369,2]
[424696166,1781057449000,-500.0,0.00021369,2]
[424696168,1781057449000,-1418.25,0.00021369,2]
[424696172,1781057449000,-500.0,0.00021369,2]
[424696171,1781057449000,-500.0,0.00021369,2]
[424696176,1781057449000,-4734.28,0.00021369,2]
[424696178,1781057449000,-815.92,0.00021369,2]
[424696180,1781057449000,-3940.9,0.00021369,2]
[424696182,1781057449000,-500.0,0.00021369,2]
[424696195,1781057449000,-5266.7,0.00021369,2]
[424696185,1781057449000,-5140.93,0.00021369,2]
[424696187,1781057449000,-1305.98,0.00021369,2]
[424696194,1781057449000,-685.25,0.00021369,2]
[424696199,1781057449000,-2464.15,0.00021369,2]
[424696190,1781057449000,-1501.36,0.00021369,2]
[424696188,1781057449000,-500.0,0.00021369,2]
[424696197,1781057449000,-3468.03,0.00021369,2]
[424696201,1781057449000,-500.0,0.00021369,2]
[424696192,1781057449000,-500.0,0.00021369,2]
[424696202,1781057449000,-1160.83,0.00021369,2]
[424696204,1781057449000,-500.0,0.00021369,2]
[424696208,1781057449000,-500.0,0.00021369,2]
[424696083,1781057449000,-500.0,0.00021369,2]
[424696153,1781057449000,-2006.93,0.00021369,2]
[424696152,1781057449000,-1678.21,0.00021369,2]
[424696206,1781057449000,-1000.39,0.00021369,2]
[424696146,1781057449000,-500.0,0.00021369,2]
[424696144,1781057449000,-500.0,0.00021369,2]
[424696087,1781057449000,-500.0,0.00021369,2]
[424696088,1781057449000,-500.0,0.00021369,2]
[424696096,1781057449000,-842.57,0.00021369,2]
[424696098,1781057449000,-500.0,0.00021369,2]
[424696100,1781057449000,-500.0,0.00021369,2]
[424696115,1781057449000,-500.0,0.00021369,2]
[424696114,1781057449000,-500.0,0.00021369,2]
[424696117,1781057449000,-668.06,0.00021369,2]
[424696102,1781057449000,-500.0,0.00021369,2]
[424696108,1781057449000,-1065.3,0.00021369,2]
[424696104,1781057449000,-500.0,0.00021369,2]
[424696112,1781057449000,-500.0,0.00021369,2]
[424696106,1781057449000,-500.0,0.00021369,2]
[424696119,1781057449000,-500.0,0.00021369,2]
[424696090,1781057449000,-500.0,0.00021369,2]
[424696121,1781057449000,-500.0,0.00021369,2]
[424696110,1781057449000,-500.0,0.00021369,2]
[424696142,1781057449000,-500.0,0.00021369,2]
[424696150,1781057449000,-500.0,0.00021369,2]
[424696140,1781057449000,-2725.06,0.00021369,2]
[424696138,1781057449000,-3539.53,0.00021369,2]
[424696135,1781057449000,-1024.82,0.00021369,2]
[424696148,1781057449000,-22834.25,0.00021369,2]
[424696137,1781057449000,-500.0,0.00021369,2]
[424696131,1781057449000,-500.0,0.00021369,2]
[424696129,1781057449000,-5775.81,0.00021369,2]
[424696127,1781057449000,-1875.71,0.00021369,2]
[424696125,1781057449000,-1239.06,0.00021369,2]
[424696123,1781057449000,-500.0,0.00021369,2]
[424696133,1781057449000,-1575.31,0.00021369,2]
[424696283,1781057450000,-1015.85,0.00021643,2]
[424696294,1781057450000,-581.91,0.00021643,2]
[424696285,1781057450000,-500.0,0.00021643,2]
[424696289,1781057450000,-500.0,0.00021643,2]
[424696287,1781057450000,-380.20186161,0.00021643,2]
[424696274,1781057450000,-500.0,0.00021643,2]
[424696292,1781057450000,-500.0,0.00021643,2]
[424696278,1781057450000,-500.09,0.00021643,2]
[424696281,1781057450000,-500.0,0.00021643,2]
[424696280,1781057450000,-512.56,0.00021643,2]
[424696276,1781057450000,-500.0,0.00021643,2]
[424696290,1781057450000,-500.0,0.00021643,2]
[424696296,1781057450000,-856.14,0.00021643,2]
[424696322,1781057450000,-500.0,0.00021643,2]
[424696300,1781057450000,-500.0,0.00021643,2]
[424696301,1781057450000,-504.72144806,0.00021643,2]
[424696305,1781057450000,-500.0,0.00021643,2]
[424696307,1781057450000,-500.0,0.00021643,2]
[424696303,1781057450000,-1458.71,0.00021643,2]
[424696311,1781057450000,-500.0,0.00021643,2]
[424696317,1781057450000,-1178.2943,0.00021643,2]
[424696313,1781057450000,-500.0,0.00021643,2]
[424696319,1781057450000,-500.0,0.00021643,2]
[424696309,1781057450000,-500.0,0.00021643,2]
[424696315,1781057450000,-505.36786744,0.00021643,2]
[424696321,1781057450000,-500.0,0.00021643,2]
[424696334,1781057450000,-500.0,0.00021643,2]
[424696268,1781057450000,-268.51548996,0.00021643,2]
[424696298,1781057450000,-500.0,0.00021643,2]
[424696338,1781057450000,-500.0,0.00021643,2]
[424696246,1781057450000,-492.644421,0.00021514,2]
[424696266,1781057450000,-500.0,0.00021643,2]
[424696210,1781057450000,-500.0,0.00021369,2]
[424696212,1781057450000,-500.0,0.00021369,2]
[424696223,1781057450000,-864.0,0.00021429,10]
[424696225,1781057450000,-755.59279223,0.0002144,7]
[424696213,1781057450000,-164.46,0.0002137,2]
[424696217,1781057450000,-156.07,0.00021396,2]
[424696215,1781057450000,-900.28198761,0.00021386,2]
[424696219,1781057450000,-151.0,0.000214,4]
[424696221,1781057450000,-150.32,0.00021412,2]
[424696232,1781057450000,-150.32,0.00021462,2]
[424696230,1781057450000,-164.0,0.00021452,4]
[424696235,1781057450000,-157.83,0.00021465,2]
[424696229,1781057450000,-156.07,0.00021446,2]
[424696227,1781057450000,-685.92273073,0.0002144,7]
[424696237,1781057450000,-160.0,0.00021492,5]
[424696244,1781057450000,-150.32,0.00021512,2]
[424696239,1781057450000,-156.07,0.00021496,2]
[424696242,1781057450000,-173.3934,0.0002151,2]
[424696241,1781057450000,-1052.73835232,0.000215,2]
[424696248,1781057450000,-7114.65410891,0.00021543,2]
[424696250,1781057450000,-156.07,0.00021546,2]
[424696252,1781057450000,-150.32,0.00021562,2]
[424696255,1781057450000,-1424.42,0.000216,2]
[424696253,1781057450000,-156.07,0.00021596,2]
[424696258,1781057450000,-1424.42,0.000216,2]
[424696260,1781057450000,-430.5162,0.000216,2]
[424696257,1781057450000,-1424.42,0.000216,2]
[424696270,1781057450000,-500.0,0.00021643,2]
[424696264,1781057450000,-150.32,0.00021612,2]
[424696262,1781057450000,-669.4782,0.000216,2]
[424696339,1781057450000,-500.0,0.00021643,2]
[424696272,1781057450000,-653.09,0.00021643,2]
[424696324,1781057450000,-504.5121048,0.00021643,2]
[424696396,1781057450000,-2006.93,0.00021643,2]
[424696401,1781057450000,-2212.19,0.00021643,2]
[424696398,1781057450000,-692.66,0.00021643,2]
[424696399,1781057450000,-774.75,0.00021643,2]
[424696403,1781057450000,-2752.23,0.00021643,2]
[424696404,1781057450000,-500.0,0.00021643,2]
[424696406,1781057450000,-1457.42,0.00021643,2]
[424696415,1781057450000,-500.0,0.00021643,2]
[424696413,1781057450000,-500.0,0.00021643,2]
[424696410,1781057450000,-1418.25,0.00021643,2]
[424696417,1781057450000,-4734.28,0.00021643,2]
[424696408,1781057450000,-500.0,0.00021643,2]
[424696412,1781057450000,-500.0,0.00021643,2]
[424696418,1781057450000,-815.92,0.00021643,2]
[424696429,1781057450000,-500.0,0.00021643,2]
[424696432,1781057450000,-500.0,0.00021643,2]
[424696431,1781057450000,-1501.36,0.00021643,2]
[424696422,1781057450000,-500.0,0.00021643,2]
[424696427,1781057450000,-1305.98,0.00021643,2]
[424696434,1781057450000,-685.25,0.00021643,2]
[424696436,1781057450000,-5266.7,0.00021643,2]
[424696423,1781057450000,-500.0,0.00021643,2]
[424696420,1781057450000,-3940.9,0.00021643,2]
[424696425,1781057450000,-5140.93,0.00021643,2]
[424696441,1781057450000,-500.0,0.00021643,2]
[424696438,1781057450000,-3468.03,0.00021643,2]
[424696439,1781057450000,-2464.15,0.00021643,2]
[424696444,1781057450000,-500.0,0.00021643,2]
[424696336,1781057450000,-500.0,0.00021643,2]
[424696394,1781057450000,-1678.21,0.00021643,2]
[424696389,1781057450000,-500.0,0.00021643,2]
[424696443,1781057450000,-1160.83,0.00021643,2]
[424696391,1781057450000,-22834.25,0.00021643,2]
[424696326,1781057450000,-500.0,0.00021643,2]
[424696332,1781057450000,-503.70234699,0.00021643,2]
[424696328,1781057450000,-500.0,0.00021643,2]
[424696342,1781057450000,-842.57,0.00021643,2]
[424696330,1781057450000,-500.0,0.00021643,2]
[424696343,1781057450000,-500.0,0.00021643,2]
[424696347,1781057450000,-500.0,0.00021643,2]
[424696345,1781057450000,-500.0,0.00021643,2]
[424696388,1781057450000,-155.02322885,0.00021643,2]
[424696349,1781057450000,-500.0,0.00021643,2]
[424696353,1781057450000,-1065.3,0.00021643,2]
[424696369,1781057450000,-1239.06,0.00021643,2]
[424696355,1781057450000,-500.0,0.00021643,2]
[424696358,1781057450000,-352.80449287,0.00021643,2]
[424696356,1781057450000,-500.0,0.00021643,2]
[424696351,1781057450000,-500.0,0.00021643,2]
[424696360,1781057450000,-500.0,0.00021643,2]
[424696386,1781057450000,-500.0,0.00021643,2]
[424696370,1781057450000,-1875.71,0.00021643,2]
[424696384,1781057450000,-2725.06,0.00021643,2]
[424696392,1781057450000,-500.0,0.00021643,2]
[424696382,1781057450000,-3539.53,0.00021643,2]
[424696379,1781057450000,-1024.82,0.00021643,2]
[424696377,1781057450000,-1575.31,0.00021643,2]
[424696374,1781057450000,-500.0,0.00021643,2]
[424696372,1781057450000,-5775.81,0.00021643,2]
[424696365,1781057450000,-500.0,0.00021643,2]
[424696362,1781057450000,-668.06,0.00021643,2]
[424696367,1781057450000,-500.0,0.00021643,2]
[424696364,1781057450000,-500.0,0.00021643,2]
[424696380,1781057450000,-500.0,0.00021643,2]
[424696537,1781057451000,-500.0,0.00021917,2]
[424696541,1781057451000,-500.0,0.00021917,2]
[424696526,1781057451000,-500.0,0.00021917,2]
[424696522,1781057451000,-500.0,0.00021917,2]
[424696520,1781057451000,-500.0,0.00021917,2]
[424696505,1781057451000,-500.0,0.00021917,2]
[424696519,1781057451000,-500.0,0.00021917,2]
[424696517,1781057451000,-500.0,0.00021917,2]
[424696515,1781057451000,-1178.2943,0.00021917,2]
[424696509,1781057451000,-500.0,0.00021917,2]
[424696511,1781057451000,-500.0,0.00021917,2]
[424696530,1781057451000,-842.57,0.00021917,2]
[424696528,1781057451000,-500.0,0.00021917,2]
[424696559,1781057451000,-500.0,0.00021917,2]
[424696524,1781057451000,-500.0,0.00021917,2]
[424696535,1781057451000,-500.0,0.00021917,2]
[424696532,1781057451000,-500.0,0.00021917,2]
[424696539,1781057451000,-668.06,0.00021917,2]
[424696543,1781057451000,-1239.06,0.00021917,2]
[424696544,1781057451000,-1875.71,0.00021917,2]
[424696546,1781057451000,-5775.81,0.00021917,2]
[424696550,1781057451000,-1575.31,0.00021917,2]
[424696553,1781057451000,-500.0,0.00021917,2]
[424696551,1781057451000,-1024.82,0.00021917,2]
[424696548,1781057451000,-500.0,0.00021917,2]
[424696561,1781057451000,-22834.25,0.00021917,2]
[424696563,1781057451000,-500.0,0.00021917,2]
[424696507,1781057451000,-1458.71,0.00021917,2]
[424696534,1781057451000,-1065.3,0.00021917,2]
[424696504,1781057451000,-500.0,0.00021917,2]
[424696472,1781057451000,-156.07,0.00021796,2]
[424696513,1781057451000,-500.0,0.00021917,2]
[424696555,1781057451000,-3539.53,0.00021917,2]
[424696446,1781057451000,-1000.39,0.00021643,2]
[424696448,1781057451000,-500.0,0.00021643,2]
[424696451,1781057451000,-500.0,0.00021643,2]
[424696450,1781057451000,-500.0,0.00021643,2]
[424696462,1781057451000,-366.46567642,0.00021718,2]
[424696453,1781057451000,-164.46,0.00021644,2]
[424696455,1781057451000,-156.07,0.00021646,2]
[424696464,1781057451000,-156.07,0.00021746,2]
[424696460,1781057451000,-150.46028504,0.00021712,2]
[424696458,1781057451000,-156.07,0.00021696,2]
[424696457,1781057451000,-150.32,0.00021662,2]
[424696466,1781057451000,-1500.0,0.00021793,2]
[424696470,1781057451000,-1500.0,0.00021793,2]
[424696468,1781057451000,-1500.0,0.00021793,2]
[424696474,1781057451000,-156.07,0.00021846,2]
[424696485,1781057451000,-653.09,0.00021917,2]
[424696487,1781057451000,-500.09,0.00021917,2]
[424696478,1781057451000,-156.07,0.00021896,2]
[424696476,1781057451000,-160.0,0.00021885,6]
[424696490,1781057451000,-500.0,0.00021917,2]
[424696483,1781057451000,-500.0,0.00021917,2]
[424696481,1781057451000,-500.0,0.00021917,2]
[424696480,1781057451000,-400.0,0.000219,3]
[424696494,1781057451000,-500.0,0.00021917,2]
[424696496,1781057451000,-200.52795912,0.00021917,2]
[424696502,1781057451000,-856.14,0.00021917,2]
[424696498,1781057451000,-186.13249751,0.00021917,2]
[424696500,1781057451000,-581.91,0.00021917,2]
[424696493,1781057451000,-1015.85,0.00021917,2]
[424696557,1781057451000,-2725.06,0.00021917,2]
[424696489,1781057451000,-512.56,0.00021917,2]
[424696566,1781057451000,-2006.93,0.00021917,2]
[424696638,1781057451000,-165.603611,0.00021918,2]
[424696618,1781057451000,-511.70753258,0.00021917,2]
[424696632,1781057451000,-151.000181,0.00021918,2]
[424696629,1781057451000,-151.0,0.00021918,2]
[424696678,1781057451000,-165.806988,0.00021918,2]
[424696634,1781057451000,-151.0,0.00021918,2]
[424696636,1781057451000,-151.0,0.00021918,2]
[424696630,1781057451000,-151.0,0.00021918,2]
[424696639,1781057451000,-151.0,0.00021918,2]
[424696641,1781057451000,-151.0,0.00021918,2]
[424696645,1781057451000,-151.0,0.00021918,2]
[424696643,1781057451000,-151.0,0.00021918,2]
[424696653,1781057451000,-165.806988,0.00021918,2]
[424696651,1781057451000,-281.47186,0.00021918,2]
[424696655,1781057451000,-165.806988,0.00021918,2]
[424696658,1781057451000,-165.806988,0.00021918,2]
[424696659,1781057451000,-165.806988,0.00021918,2]
[424696670,1781057451000,-165.806988,0.00021918,2]
[424696661,1781057451000,-165.806988,0.00021918,2]
[424696666,1781057451000,-165.806988,0.00021918,2]
[424696663,1781057451000,-165.806988,0.00021918,2]
[424696672,1781057451000,-165.806988,0.00021918,2]
[424696679,1781057451000,-165.806988,0.00021918,2]
[424696665,1781057451000,-165.806988,0.00021918,2]
[424696681,1781057451000,-165.806988,0.00021918,2]
[424696668,1781057451000,-165.806988,0.00021918,2]
[424696676,1781057451000,-165.806988,0.00021918,2]
[424696674,1781057451000,-165.806988,0.00021918,2]
[424696564,1781057451000,-1678.21,0.00021917,2]
[424696625,1781057451000,-151.0,0.00021918,2]
[424696627,1781057451000,-152.698009,0.00021918,2]
[424696650,1781057451000,-151.0,0.00021918,2]
[424696620,1781057451000,-500.0,0.00021917,2]
[424696568,1781057451000,-692.66,0.00021917,2]
[424696623,1781057451000,-758.03562964,0.00021918,2]
[424696573,1781057451000,-2752.23,0.00021917,2]
[424696575,1781057451000,-500.0,0.00021917,2]
[424696589,1781057451000,-3940.9,0.00021917,2]
[424696577,1781057451000,-1457.42,0.00021917,2]
[424696579,1781057451000,-500.0,0.00021917,2]
[424696570,1781057451000,-774.75,0.00021917,2]
[424696584,1781057451000,-500.0,0.00021917,2]
[424696583,1781057451000,-500.0,0.00021917,2]
[424696588,1781057451000,-815.92,0.00021917,2]
[424696586,1781057451000,-4734.28,0.00021917,2]
[424696581,1781057451000,-1418.25,0.00021917,2]
[424696591,1781057451000,-500.0,0.00021917,2]
[424696593,1781057451000,-5140.93,0.00021917,2]
[424696572,1781057451000,-2212.19,0.00021917,2]
[424696597,1781057451000,-500.0,0.00021917,2]
[424696595,1781057451000,-1305.98,0.00021917,2]
[424696616,1781057451000,-500.0,0.00021917,2]
[424696614,1781057451000,-1000.39,0.00021917,2]
[424696613,1781057451000,-500.0,0.00021917,2]
[424696606,1781057451000,-3468.03,0.00021917,2]
[424696601,1781057451000,-500.0,0.00021917,2]
[424696609,1781057451000,-500.0,0.00021917,2]
[424696604,1781057451000,-5266.7,0.00021917,2]
[424696602,1781057451000,-685.25,0.00021917,2]
[424696611,1781057451000,-1160.83,0.00021917,2]
[424696599,1781057451000,-1501.36,0.00021917,2]
[424696608,1781057451000,-2464.15,0.00021917,2]
[424696621,1781057451000,-1119.39707749,0.00021918,2]
[424696714,1781057452000,-151.0,0.00021918,2]
[424696716,1781057452000,-151.0,0.00021918,2]
[424696727,1781057452000,-151.0,0.00021918,2]
[424696712,1781057452000,-151.0,0.00021918,2]
[424696730,1781057452000,-151.0,0.00021918,2]
[424696720,1781057452000,-151.0,0.00021918,2]
[424696723,1781057452000,-151.0,0.00021918,2]
[424696718,1781057452000,-151.0,0.00021918,2]
[424696722,1781057452000,-151.0,0.00021918,2]
[424696710,1781057452000,-151.0,0.00021918,2]
[424696734,1781057452000,-1583.896334,0.00021918,2]
[424696729,1781057452000,-151.0,0.00021918,2]
[424696706,1781057452000,-151.0,0.00021918,2]
[424696695,1781057452000,-151.0,0.00021918,2]
[424696703,1781057452000,-151.0,0.00021918,2]
[424696704,1781057452000,-151.0,0.00021918,2]
[424696697,1781057452000,-151.0,0.00021918,2]
[424696701,1781057452000,-244.85742,0.00021918,2]
[424696690,1781057452000,-151.0,0.00021918,2]
[424696683,1781057452000,-165.806988,0.00021918,2]
[424696694,1781057452000,-151.0,0.00021918,2]
[424696688,1781057452000,-165.806984,0.00021918,2]
[424696699,1781057452000,-151.0,0.00021918,2]
[424696692,1781057452000,-151.0,0.00021918,2]
[424696687,1781057452000,-165.806988,0.00021918,2]
[424696685,1781057452000,-165.806988,0.00021918,2]
[424696732,1781057452000,-212.479308,0.00021918,2]
[424696708,1781057452000,-151.0,0.00021918,2]
[424696736,1781057452000,-1440.21502103,0.00021918,2]
[424696725,1781057452000,-151.0,0.00021918,2]
[424696754,1781057452000,-500.0,0.00019178,2]
[424696756,1781057452000,-500.0,0.00019452,2]
[424696820,1781057452000,-864.41452016,0.00021918,2]
[424696816,1781057452000,-816.68187302,0.00021918,2]
[424696818,1781057452000,-767.21446098,0.00021918,2]
[424696812,1781057452000,-104.42175627,0.00021918,2]
[424696809,1781057452000,-1035.28879233,0.00021918,2]
[424696810,1781057452000,-190.06291317,0.00021918,2]
[424696814,1781057452000,-1479.47457773,0.00021918,2]
[424696807,1781057452000,-5000.0,0.00018986,2]
[424696801,1781057452000,-358.5446285,0.00021918,2]
[424696799,1781057452000,-1583.896334,0.00021918,2]
[424696796,1781057452000,-500.0,0.00021917,2]
[424696794,1781057452000,-500.0,0.00021643,2]
[424696792,1781057452000,-500.0,0.00021643,2]
[424696797,1781057452000,-143.68131297,0.00021918,2]
[424696781,1781057452000,-500.0,0.00020273,2]
[424696763,1781057452000,-500.0,0.00020821,2]
[424696790,1781057452000,-500.0,0.00021369,2]
[424696760,1781057452000,-500.0,0.00020547,2]
[424696758,1781057452000,-500.0,0.00020273,2]
[424696765,1781057452000,-500.0,0.00020821,2]
[424696767,1781057452000,-81.79113253,0.00021095,2]
[424696762,1781057452000,-500.0,0.00020547,2]
[424696786,1781057452000,-500.0,0.00021095,2]
[424696777,1781057452000,-500.0,0.00019726,2]
[424696788,1781057452000,-500.0,0.00021369,2]
[424696779,1781057452000,-500.0,0.0002,2]
[424696783,1781057452000,-500.0,0.00020547,2]
[424696785,1781057452000,-418.20886747,0.00021095,2]
[424697114,1781058130000,411.01480451,0.00020166,120]
[424697115,1781058134000,154.29916686,0.00020166,120]
[424697116,1781058138000,150.7618889,0.00020166,120]
[424697118,1781058179000,545.0,0.0002411,30]
[424697145,1781058638000,-300.0,0.00016628,2]
[424697144,1781058638000,-5000.0,0.00016132,2]
[424697143,1781058638000,-5000.0,0.00015971,2]
[424697147,1781058638000,-3296.0209598,0.00016629,2]
[424697146,1781058638000,-300.0,0.00016628,2]
[424697149,1781058638000,-500.0,0.00017177,2]
[424697148,1781058638000,-500.0,0.00017177,2]
[424697150,1781058638000,-500.0,0.00017177,2]
[424697154,1781058638000,-500.0,0.00017177,2]
[424697151,1781058638000,-500.0,0.00017177,2]
[424697152,1781058638000,-500.0,0.00017177,2]
[424697155,1781058638000,-500.0,0.00017177,2]
[424697153,1781058638000,-500.0,0.00017177,2]
[424697157,1781058638000,-2995.1601327,0.00017179,2]
[424697156,1781058638000,-263.68874294,0.00017177,2]
[424697158,1781058638000,-675.21149076,0.00017669,2]
[424697159,1781058638000,-14662.5781401,0.00017681,2]
[424697233,1781058639000,-500.0,0.00019178,2]
[424697238,1781058639000,-500.0,0.00019178,2]
[424697227,1781058639000,-387.21940071,0.00019178,2]
[424697229,1781058639000,-500.0,0.00019178,2]
[424697226,1781058639000,-500.0,0.00019178,2]
[424697222,1781058639000,-500.0,0.00019178,2]
[424697236,1781058639000,-500.0,0.00019178,2]
[424697208,1781058639000,-500.0,0.00019178,2]
[424697211,1781058639000,-500.0,0.00019178,2]
[424697224,1781058639000,-500.0,0.00019178,2]
[424697210,1781058639000,-500.0,0.00019178,2]
[424697213,1781058639000,-500.0,0.00019178,2]
[424697231,1781058639000,-500.0,0.00019178,2]
[424697250,1781058639000,-500.0,0.00019178,2]
[424697240,1781058639000,-846.21,0.00019178,2]
[424697243,1781058639000,-500.0,0.00019178,2]
[424697245,1781058639000,-500.0,0.00019178,2]
[424697247,1781058639000,-500.0,0.00019178,2]
[424697241,1781058639000,-500.0,0.00019178,2]
[424697248,1781058639000,-500.0,0.00019178,2]
[424697256,1781058639000,-500.0,0.00019178,2]
[424697254,1781058639000,-500.0,0.00019178,2]
[424697258,1781058639000,-500.0,0.00019178,2]
[424697261,1781058639000,-500.0,0.00019178,2]
[424697263,1781058639000,-500.0,0.00019178,2]
[424697262,1781058639000,-500.0,0.00019178,2]
[424697206,1781058639000,-500.0,0.00019178,2]
[424697234,1781058639000,-500.0,0.00019178,2]
[424697204,1781058639000,-500.0,0.00019178,2]
[424697165,1781058639000,-170.4293,0.00018198,2]
[424697218,1781058639000,-500.0,0.00019178,2]
[424697162,1781058639000,-174.67,0.0001803,2]
[424697161,1781058639000,-791.7215255,0.00017769,2]
[424697160,1781058639000,-205.1076242,0.00017769,2]
[424697163,1781058639000,-420.0,0.00018168,2]
[424697164,1781058639000,-385.0,0.00018168,2]
[424697179,1781058639000,-502.26543448,0.0001899,2]
[424697177,1781058639000,-1543.23733923,0.000189,2]
[424697174,1781058639000,-417.15472785,0.00018895,2]
[424697167,1781058639000,-3467.3507465,0.00018353,2]
[424697169,1781058639000,-1042.73555083,0.00018597,2]
[424697170,1781058639000,-186.0,0.00018667,2]
[424697172,1781058639000,-160.0,0.00018895,2]
[424697181,1781058639000,-800.0,0.00019058,14]
[424697220,1781058639000,-500.0,0.00019178,2]
[424697193,1781058639000,-500.0,0.00019178,2]
[424697199,1781058639000,-500.0,0.00019178,2]
[424697184,1781058639000,-288.26127013,0.00019078,2]
[424697195,1781058639000,-500.0,0.00019178,2]
[424697182,1781058639000,-387.270013,0.0001906,2]
[424697197,1781058639000,-825.3864,0.00019178,2]
[424697186,1781058639000,-1543.23733923,0.000191,2]
[424697191,1781058639000,-500.0,0.00019177,2]
[424697188,1781058639000,-500.0,0.00019177,2]
[424697189,1781058639000,-500.0,0.00019177,2]
[424697201,1781058639000,-500.0,0.00019178,2]
[424697203,1781058639000,-500.0,0.00019178,2]
[424697215,1781058639000,-500.0,0.00019178,2]
[424697217,1781058639000,-500.0,0.00019178,2]
[424697185,1781058639000,-500.0,0.00019099,2]
[424697267,1781058639000,-266.71629172,0.00019178,2]
[424697252,1781058639000,-500.0,0.00019178,2]
[424697268,1781058639000,-500.0,0.00019178,2]
[424697338,1781058639000,-500.0,0.00019178,2]
[424697327,1781058639000,-500.0,0.00019178,2]
[424697323,1781058639000,-500.0,0.00019178,2]
[424697325,1781058639000,-12973.48,0.00019178,2]
[424697342,1781058639000,-500.0,0.00019178,2]
[424697329,1781058639000,-500.0,0.00019178,2]
[424697340,1781058639000,-512.20318841,0.00019178,2]
[424697344,1781058639000,-1240.0,0.00019178,2]
[424697347,1781058639000,-1126.06,0.00019178,2]
[424697356,1781058639000,-500.0,0.00019178,2]
[424697353,1781058639000,-816.49,0.00019178,2]